bitfinex/quotes_BTCUSD_20250920
["timestamp","ask_amount","ask_price","bid_price","bid_amount"]
[1758345567286,0.0264125,115770.0,115760.0,0.92929832]
[1758345575071,0.02554868,115770.0,115760.0,0.92929832]
[1758345593184,0.02554868,115770.0,115760.0,1.25197243]
[1758345596501,0.02554868,115770.0,115760.0,0.92929832]
[1758345596675,0.02554868,115770.0,115760.0,1.25197243]
[1758345603114,0.02554868,115770.0,115760.0,1.57464654]
[1758345603566,0.0004,115780.0,115770.0,0.17275632]
[1758345603756,0.0004,115780.0,115770.0,0.8491001]
[1758345603878,0.0004,115780.0,115770.0,0.8791201]
[1758345604297,0.0004,115780.0,115770.0,0.90508417]
[1758345604917,0.0004,115780.0,115770.0,0.90808417]
[1758345606862,0.0004,115780.0,115770.0,1.17618417]
[1758345613667,0.0004,115780.0,115770.0,0.85351006]
[1758345618542,0.32307411,115780.0,115770.0,0.85351006]
[1758345618911,0.0004,115780.0,115770.0,0.85351006]
[1758345622259,0.32307411,115780.0,115770.0,0.85351006]
[1758345623378,0.0004,115780.0,115770.0,0.85351006]
[1758345624855,0.0004,115780.0,115770.0,0.94687006]
[1758345625780,0.0004,115780.0,115770.0,0.67847006]
[1758345625981,0.0004,115780.0,115770.0,0.94683006]
[1758345630683,0.0004,115780.0,115770.0,0.92086599]
[1758345636625,0.0004,115780.0,115770.0,0.65250599]
[1758345636803,0.0004,115780.0,115770.0,0.92086599]
[1758345638874,0.0004,115780.0,115770.0,0.65250599]
[1758345639022,0.0004,115780.0,115770.0,0.92086599]
[1758345641422,0.32307411,115780.0,115770.0,0.92086599]
[1758345643274,0.32307411,115780.0,115770.0,0.94683007]
[1758345643879,0.0004,115780.0,115770.0,0.94683007]
[1758345644079,0.32307411,115780.0,115770.0,0.94683007]
[1758345646149,0.0004,115780.0,115770.0,0.94683007]
[1758345646355,0.32307411,115780.0,115770.0,0.94683007]
[1758345646569,0.0004,115780.0,115770.0,1.26950418]
[1758345651387,0.0004,115780.0,115770.0,0.94683007]
[1758345667663,0.32302254,115780.0,115770.0,0.94679007]
[1758345667866,0.32502254,115780.0,115770.0,0.92082599]
[1758345668077,0.34826254,115780.0,115770.0,0.92082599]
[1758345668484,0.02564,115780.0,115770.0,0.92082599]
[1758345668695,0.04288,115780.0,115770.0,0.92082599]
[1758345676320,0.01764,115780.0,115770.0,0.92082599]
[1758345684203,0.01764,115780.0,115770.0,0.92072599]
[1758345690486,0.01764,115780.0,115770.0,0.94669007]
[1758345690487,0.04360408,115780.0,115770.0,0.94669007]
[1758345701079,0.02636408,115780.0,115770.0,0.94669007]
[1758345707811,0.04360408,115780.0,115770.0,0.94669007]
[1758345715864,0.36625,115780.0,115770.0,0.94669007]
[1758345716137,0.34901,115780.0,115770.0,0.94669007]
[1758345721573,0.02636408,115780.0,115770.0,0.94669007]
[1758345721770,0.34901,115780.0,115770.0,0.94669007]
[1758345727552,0.02636408,115780.0,115770.0,0.94669007]
[1758345727723,0.34901,115780.0,115770.0,0.94669007]
[1758345727929,0.34901,115780.0,115770.0,0.96181282]
[1758345728124,0.34901,115780.0,115770.0,0.94669007]
[1758345732321,0.02636408,115780.0,115770.0,0.94669007]
[1758345733205,0.34901,115780.0,115770.0,0.94679007]
[1758345733780,0.34901,115780.0,115770.0,0.94379007]
[1758345733976,0.34901,115780.0,115770.0,0.94679007]
[1758345734519,0.34901,115780.0,115770.0,0.94379007]
[1758345734686,0.34901,115780.0,115770.0,0.95079007]
[1758345734883,0.34901,115780.0,115770.0,0.92613007]
[1758345735082,0.37519,115780.0,115770.0,0.92613007]
[1758345735305,0.37519,115780.0,115770.0,0.94871007]
[1758345736748,0.37519,115780.0,115770.0,0.94552007]
[1758345737035,0.37519,115780.0,115770.0,0.94544007]
[1758345737656,0.37519,115780.0,115770.0,0.67720007]
[1758345737870,0.37519,115780.0,115770.0,0.94544007]
[1758345739058,0.37519,115780.0,115770.0,0.92286007]
[1758345739530,0.37519,115780.0,115770.0,0.89689599]
[1758345739938,0.37824,115780.0,115770.0,0.62658599]
[1758345740146,0.37824,115780.0,115770.0,0.89482599]
[1758345740603,0.37519,115780.0,115770.0,0.89482599]
[1758345741203,0.37519,115780.0,115770.0,0.62658599]
[1758345741422,0.37519,115780.0,115770.0,0.89482599]
[1758345742859,0.37824,115780.0,115770.0,0.89482599]
[1758345744363,0.37519,115780.0,115770.0,0.89482599]
[1758345749852,0.37519,115780.0,115770.0,0.89695599]
[1758345751834,0.37519,115780.0,115770.0,0.92329599]
[1758345752538,0.3732,115780.0,115770.0,0.92329599]
[1758345752948,0.37533,115780.0,115770.0,0.92329599]
[1758345753244,0.05268408,115780.0,115770.0,0.92329599]
[1758345753552,0.39257,115780.0,115770.0,0.92329599]
[1758345753838,0.37533,115780.0,115770.0,0.92329599]
[1758345761109,0.02849408,115780.0,115770.0,1.24594191]
[1758345761329,0.04360408,115780.0,115770.0,1.24594191]
[1758345762023,0.06759408,115780.0,115770.0,1.24594191]
[1758345764688,0.04360408,115780.0,115770.0,1.24594191]
[1758345773725,0.04360408,115780.0,115770.0,0.92329599]
[1758345773933,0.04360408,115780.0,115770.0,1.24594191]
[1758345775927,0.04360408,115780.0,115770.0,1.24592165]
[1758345783748,0.02636408,115780.0,115770.0,1.24592165]
[1758345825994,0.04360408,115780.0,115770.0,1.24592165]
[1758345826222,0.04360408,115780.0,115770.0,1.2610444]
[1758345826456,0.04360408,115780.0,115770.0,1.24592165]
[1758345827021,0.04360408,115780.0,115770.0,0.92329599]
[1758345827228,0.04360408,115780.0,115770.0,1.24580165]
[1758345829641,0.06658408,115780.0,115770.0,1.24580165]
[1758345830276,0.06870408,115780.0,115770.0,1.24580165]
[1758345831089,0.06870408,115780.0,115770.0,0.92317599]
[1758345833188,0.06870408,115780.0,115770.0,0.89683599]
[1758345834192,0.39132974,115780.0,115770.0,0.91954599]
[1758345834394,0.37408974,115780.0,115770.0,0.91954599]
[1758345834715,0.37408974,115780.0,115770.0,0.92256599]
[1758345836548,0.05146408,115780.0,115770.0,0.92256599]
[1758345836728,0.06870408,115780.0,115770.0,0.92256599]
[1758345837952,0.39135378,115780.0,115770.0,0.92256599]
[1758345838148,0.37411378,115780.0,115770.0,0.92256599]
[1758345842254,0.35113378,115780.0,115770.0,0.92256599]
[1758345843831,0.37471378,115780.0,115770.0,0.92256599]
[1758345846621,0.35113378,115780.0,115770.0,0.92256599]
[1758345847828,0.02848408,115780.0,115770.0,0.92256599]
[1758345848056,0.04360408,115780.0,115770.0,0.92256599]
[1758345848423,0.36625378,115780.0,115770.0,0.92256599]
[1758345848634,0.34901378,115780.0,115770.0,0.92256599]
[1758345849543,0.02636408,115780.0,115770.0,0.92256599]
[1758345849682,0.02636408,115780.0,115770.0,1.24521569]
[1758345850031,0.02636408,115780.0,115770.0,0.92256599]
[1758345851290,0.34901378,115780.0,115770.0,0.92256599]
[1758345851624,0.02636408,115780.0,115770.0,0.92256599]
[1758345851843,0.34901378,115780.0,115770.0,0.92256599]
[1758345855482,0.02636408,115780.0,115770.0,0.92256599]
[1758345855680,0.34901378,115780.0,115770.0,0.92256599]
[1758345856649,0.02636408,115780.0,115770.0,1.24521569]
[1758345859529,0.02636408,115780.0,115770.0,0.92256599]
[1758345862348,0.02636408,115780.0,115770.0,0.94853006]
[1758345867797,0.34901378,115780.0,115770.0,0.94853006]
[1758345875908,0.02636408,115780.0,115770.0,0.94853006]
[1758345876145,0.34901378,115780.0,115770.0,0.94853006]
[1758345879848,0.02636408,115780.0,115770.0,0.94853006]
[1758345880044,0.34901378,115780.0,115770.0,0.94853006]
[1758345880453,0.02636408,115780.0,115770.0,0.94853006]
[1758345889338,0.34901378,115780.0,115770.0,0.94853006]
[1758345894395,0.37290378,115780.0,115770.0,0.94853006]
[1758345896846,0.37782378,115780.0,115770.0,0.92067006]
[1758345897067,0.37782378,115780.0,115770.0,0.89470599]
[1758345898246,0.37476378,115780.0,115770.0,0.89470599]
[1758345898886,0.37476378,115780.0,115770.0,0.89665599]
[1758345899907,0.3747831,115780.0,115770.0,0.89665599]
[1758345904032,0.3747831,115780.0,115770.0,0.92066599]
[1758345906717,0.3747831,115780.0,115770.0,0.92384599]
[1758345907124,0.3726731,115780.0,115770.0,0.92384599]
[1758345907945,0.02636408,115780.0,115770.0,0.92384599]
[1758345908155,0.3490331,115780.0,115770.0,0.92384599]
[1758345909203,0.02636408,115780.0,115770.0,0.92384599]
[1758345922007,0.02636408,115780.0,115770.0,0.94981007]
[1758345930761,0.02636408,115780.0,115770.0,0.92384599]
[1758345937974,0.0004,115780.0,115770.0,1.27666691]
[1758345938172,0.0004,115780.0,115770.0,1.30262834]
[1758345939568,0.0004,115780.0,115770.0,1.29862834]
[1758345939828,0.0004,115780.0,115770.0,1.29562834]
[1758345940009,0.0004,115780.0,115770.0,1.30362834]
[1758345940438,0.0004,115780.0,115770.0,1.30962834]
[1758345950855,0.0004,115780.0,115770.0,0.98695932]
[1758345951058,0.0004,115780.0,115770.0,1.30962834]
[1758345954432,0.0004,115780.0,115770.0,0.98695932]
[1758345956569,0.69181045,115800.0,115770.0,0.98695932]
[1758345956774,0.63453551,115800.0,115790.0,0.25799615]
[1758345956978,0.63653551,115800.0,115790.0,0.52607615]
[1758345958788,0.65965551,115800.0,115790.0,0.52607615]
[1758345959462,0.65965551,115800.0,115790.0,0.53007615]
[1758345959798,0.65965551,115800.0,115790.0,0.79817615]
[1758345960980,0.33698649,115800.0,115790.0,0.79817615]
[1758345961216,0.65965551,115800.0,115790.0,0.79817615]
[1758345961829,0.98214899,115800.0,115790.0,0.79817615]
[1758345963005,0.65956774,115800.0,115790.0,0.79817615]
[1758345965077,0.65956774,115800.0,115790.0,0.86352527]
[1758345967570,0.98214899,115800.0,115790.0,0.86352527]
[1758345968742,0.98822675,115800.0,115790.0,0.86352527]
[1758345972058,0.34306425,115800.0,115790.0,0.86352527]
[1758345972261,0.98822675,115800.0,115790.0,0.86352527]
[1758345972745,0.98504675,115800.0,115790.0,0.86352527]
[1758345974641,0.98504675,115800.0,115790.0,0.88742527]
[1758345975157,0.98504675,115800.0,115790.0,0.88953527]
[1758345977483,0.96192675,115800.0,115790.0,0.88953527]
[1758345979016,0.31676425,115800.0,115790.0,0.88953527]
[1758345979256,0.96192675,115800.0,115790.0,0.88953527]
[1758345988371,0.96192706,115800.0,115790.0,0.88953527]
[1758345989811,0.96192706,115800.0,115790.0,0.62145527]
[1758345990039,0.96192706,115800.0,115790.0,0.88949527]
[1758345995644,0.96192706,115800.0,115790.0,0.82414615]
[1758345995877,0.96192689,115800.0,115790.0,0.82414615]
[1758345996123,0.63934564,115800.0,115790.0,0.82414615]
[1758345999295,0.63934564,115800.0,115790.0,0.55610615]
[1758345999518,0.63934564,115800.0,115790.0,0.82414615]
[1758346005730,0.96192689,115800.0,115790.0,0.82414615]
[1758346008543,0.96192689,115800.0,115790.0,0.55610615]
[1758346008725,0.96192689,115800.0,115790.0,0.82414615]
[1758346010723,0.31676439,115800.0,115790.0,0.82414615]
[1758346010904,0.63934564,115800.0,115790.0,0.82414615]
[1758346012169,0.63934564,115800.0,115790.0,0.82736615]
[1758346012482,0.63734564,115800.0,115790.0,0.82736615]
[1758346021844,0.63735749,115800.0,115790.0,0.82736615]
[1758346023339,0.63943749,115800.0,115790.0,0.82736615]
[1758346023550,0.63735749,115800.0,115790.0,0.82736615]
[1758346024508,0.31476439,115800.0,115790.0,0.82736615]
[1758346024714,0.63735749,115800.0,115790.0,0.82736615]
[1758346031213,0.63735791,115800.0,115790.0,0.82736615]
[1758346043791,0.31476481,115800.0,115790.0,0.82736615]
[1758346044003,0.63735791,115800.0,115790.0,0.82736615]
[1758346063061,0.63735841,115800.0,115790.0,0.82736615]
[1758346065310,0.31476531,115800.0,115790.0,0.82736615]
[1758346065655,0.63735841,115800.0,115790.0,0.82736615]
[1758346072871,0.63950841,115800.0,115790.0,0.82736615]
[1758346074094,0.31691531,115800.0,115790.0,0.82736615]
[1758346074307,0.63950841,115800.0,115790.0,0.82736615]
[1758346082009,0.96209345,115800.0,115790.0,0.82736615]
[1758346082713,0.31691531,115800.0,115790.0,0.82736615]
[1758346082849,0.96209345,115800.0,115790.0,0.82736615]
[1758346085105,0.96209345,115800.0,115790.0,0.82414615]
[1758346085309,0.96209345,115800.0,115790.0,0.55610615]
[1758346085514,0.96209345,115800.0,115790.0,0.82418615]
[1758346085714,0.96209342,115800.0,115790.0,0.82418615]
[1758346087799,0.98705342,115800.0,115790.0,0.82418615]
[1758346090921,0.96526342,115800.0,115790.0,0.79817615]
[1758346091119,0.99022342,115800.0,115790.0,0.79821615]
[1758346093389,0.34504528,115800.0,115790.0,0.79821615]
[1758346093621,0.99022342,115800.0,115790.0,0.79821615]
[1758346095393,0.96209342,115800.0,115790.0,0.82490615]
[1758346096566,0.98705342,115800.0,115790.0,0.80034615]
[1758346101128,0.96209342,115800.0,115790.0,0.82490615]
[1758346101570,0.63950435,115800.0,115790.0,0.82490615]
[1758346102951,0.31691528,115800.0,115790.0,0.82490615]
[1758346103262,0.63950435,115800.0,115790.0,0.82490615]
[1758346106142,0.31691528,115800.0,115790.0,0.82490615]
[1758346106323,0.63950435,115800.0,115790.0,0.82490615]
[1758346111336,0.63950435,115800.0,115790.0,0.82814615]
[1758346125004,0.31691528,115800.0,115790.0,0.82814615]
[1758346125213,0.63950435,115800.0,115790.0,0.82814615]
[1758346135870,0.31691528,115800.0,115790.0,0.82814615]
[1758346136082,0.63950435,115800.0,115790.0,0.82814615]
[1758346137712,0.63950423,115800.0,115790.0,0.82814615]
[1758346141579,0.63950423,115800.0,115790.0,0.82490615]
[1758346143947,0.63949463,115800.0,115790.0,0.82490615]
[1758346144992,0.63949463,115800.0,115790.0,0.82790615]
[1758346148495,0.63341596,115800.0,115790.0,0.82790615]
[1758346148690,0.63949475,115800.0,115790.0,0.82790615]
[1758346149966,0.31691528,115800.0,115790.0,0.82790615]
[1758346153727,0.31691529,115800.0,115790.0,0.82790615]
[1758346165415,0.31476529,115800.0,115790.0,0.82790615]
[1758346168480,0.63734476,115800.0,115790.0,0.82790615]
[1758346171891,0.31476529,115800.0,115790.0,0.82790615]
[1758346175922,0.63734476,115800.0,115790.0,0.82790615]
[1758346177981,0.31476529,115800.0,115790.0,0.82790615]
[1758346179030,0.63734476,115800.0,115790.0,0.82790615]
[1758346189701,0.31476529,115800.0,115790.0,0.82790615]
[1758346189905,0.63734476,115800.0,115790.0,0.82790615]
[1758346191027,0.31476529,115800.0,115790.0,0.82790615]
[1758346191187,0.63734476,115800.0,115790.0,0.82790615]
[1758346197663,0.31476529,115800.0,115790.0,0.82790615]
[1758346203996,0.63732579,115800.0,115790.0,0.82790615]
[1758346209259,0.63941579,115800.0,115790.0,0.82790615]
[1758346210439,0.63941579,115800.0,115790.0,0.82490615]
[1758346213966,0.63941579,115800.0,115790.0,0.55678615]
[1758346214188,0.63941579,115800.0,115790.0,0.82482615]
[1758346220675,0.63941579,115800.0,115790.0,0.82777615]
[1758346222221,0.31476529,115800.0,115790.0,0.82777615]
[1758346222419,0.63732579,115800.0,115790.0,0.82777615]
[1758346225274,0.31476529,115800.0,115790.0,0.82777615]
[1758346225493,0.63732579,115800.0,115790.0,0.82777615]
[1758346228827,0.31476529,115800.0,115790.0,0.82777615]
[1758346228984,0.63732579,115800.0,115790.0,0.82777615]
[1758346234576,0.31476529,115800.0,115790.0,0.82777615]
[1758346234777,0.63732579,115800.0,115790.0,0.82777615]
[1758346235037,0.63732514,115800.0,115790.0,0.82777615]
[1758346239645,0.31476464,115800.0,115790.0,0.82777615]
[1758346239856,0.63732514,115800.0,115790.0,0.82777615]
[1758346257024,0.63937514,115800.0,115790.0,0.82777615]
[1758346265839,0.63938351,115800.0,115790.0,0.82777615]
[1758346268107,0.31681464,115800.0,115790.0,0.82777615]
[1758346268245,0.63938351,115800.0,115790.0,0.82777615]
[1758346269620,0.31476464,115800.0,115790.0,0.82777615]
[1758346272842,0.31476464,115800.0,115790.0,0.92113615]
[1758346284479,0.31476464,115800.0,115790.0,0.65309615]
[1758346284717,0.31476464,115800.0,115790.0,0.92113615]
[1758346286340,0.03208657,115800.0,115790.0,0.92113615]
[1758346286557,0.02600842,115800.0,115790.0,0.92113615]
[1758346297671,0.04324842,115800.0,115790.0,0.92113615]
[1758346298068,0.02600842,115800.0,115790.0,0.92113615]
[1758346318656,0.02600842,115800.0,115790.0,0.92123615]
[1758346326017,0.02600842,115800.0,115790.0,1.24376276]
[1758346327521,0.35067503,115800.0,115790.0,0.92123615]
[1758346331520,0.02814842,115800.0,115790.0,0.92123615]
[1758346332966,0.02600842,115800.0,115790.0,0.92123615]
[1758346333154,0.02600842,115800.0,115790.0,0.65319615]
[1758346333354,0.02600842,115800.0,115790.0,0.92119615]
[1758346335805,0.04324842,115800.0,115790.0,0.92119615]
[1758346346775,0.04324842,115800.0,115790.0,0.65319615]
[1758346346987,0.04324842,115800.0,115790.0,0.92119615]
[1758346347614,0.04324842,115800.0,115790.0,0.65319615]
[1758346347831,0.04324842,115800.0,115790.0,0.92119615]
[1758346348256,0.36577503,115800.0,115790.0,0.92119615]
[1758346348462,0.34853503,115800.0,115790.0,0.92119615]
[1758346350097,0.34853503,115800.0,115790.0,0.65319615]
[1758346350322,0.34853503,115800.0,115790.0,0.92119615]
[1758346352267,0.34853503,115800.0,115790.0,0.65319615]
[1758346352470,0.34853503,115800.0,115790.0,0.92119615]
[1758346352702,0.67106164,115800.0,115790.0,0.92119615]
[1758346354734,0.02600842,115800.0,115790.0,0.92119615]
[1758346354972,0.36577503,115800.0,115790.0,0.92119615]
[1758346355195,0.34853503,115800.0,115790.0,0.92119615]
[1758346355608,0.02600842,115800.0,115790.0,0.92119615]
[1758346355823,0.36577503,115800.0,115790.0,0.92119615]
[1758346355987,0.34853503,115800.0,115790.0,0.92119615]
[1758346362195,0.02600842,115800.0,115790.0,0.92119615]
[1758346362441,0.67106164,115800.0,115790.0,0.92119615]
[1758346363522,0.02600842,115800.0,115790.0,0.92119615]
[1758346363724,0.67106164,115800.0,115790.0,0.92119615]
[1758346365723,0.34853503,115800.0,115790.0,0.92119615]
[1758346373311,0.67106164,115800.0,115790.0,0.92119615]
[1758346381620,0.02600842,115800.0,115790.0,0.92119615]
[1758346382475,0.04324842,115800.0,115790.0,0.92119615]
[1758346387585,0.02600842,115800.0,115790.0,0.92119615]
[1758346389644,0.04324842,115800.0,115790.0,0.92119615]
[1758346390041,0.02600842,115800.0,115790.0,0.92119615]
[1758346397982,0.04324842,115800.0,115790.0,0.92119615]
[1758346398400,0.02600842,115800.0,115790.0,0.92119615]
[1758346426139,4.699e-05,115800.0,115790.0,0.68324805]
[1758346426341,4.699e-05,115800.0,115790.0,1.00579296]
[1758346426510,4.699e-05,115800.0,115790.0,0.70920579]
[1758346426712,4.699e-05,115800.0,115790.0,0.72432854]
[1758346426942,4.699e-05,115800.0,115790.0,1.04687345]
[1758346427163,4.699e-05,115800.0,115790.0,1.04287345]
[1758346427381,4.699e-05,115800.0,115790.0,1.09287345]
[1758346427601,4.699e-05,115800.0,115790.0,1.10687345]
[1758346428038,4.699e-05,115800.0,115790.0,1.0777507]
[1758346428262,4.699e-05,115800.0,115790.0,0.76620579]
[1758346428520,4.699e-05,115800.0,115790.0,0.77420579]
[1758346428753,4.699e-05,115800.0,115790.0,1.0967507]
[1758346429391,4.699e-05,115800.0,115790.0,0.77420579]
[1758346429832,4.699e-05,115800.0,115790.0,1.10538841]
[1758346430044,4.699e-05,115800.0,115790.0,0.7828435]
[1758346430255,4.699e-05,115800.0,115790.0,1.0967507]
[1758346430477,4.699e-05,115800.0,115790.0,0.77420579]
[1758346430681,4.699e-05,115800.0,115790.0,1.0967507]
[1758346431094,4.699e-05,115800.0,115790.0,0.77420579]
[1758346431531,4.699e-05,115800.0,115790.0,1.0967507]
[1758346432120,4.699e-05,115800.0,115790.0,0.77420579]
[1758346432383,4.699e-05,115800.0,115790.0,1.0967507]
[1758346432900,4.699e-05,115800.0,115790.0,0.78271358]
[1758346433076,4.699e-05,115800.0,115790.0,1.10525849]
[1758346437425,4.699e-05,115800.0,115790.0,1.37335849]
[1758346438559,4.699e-05,115800.0,115790.0,1.05081358]
[1758346438742,4.699e-05,115800.0,115790.0,1.37335849]
[1758346440199,4.699e-05,115800.0,115790.0,1.05081358]
[1758346440631,4.699e-05,115800.0,115790.0,1.37335849]
[1758346442030,4.699e-05,115800.0,115790.0,1.04230579]
[1758346442247,4.699e-05,115800.0,115790.0,1.3648507]
[1758346442938,4.699e-05,115800.0,115790.0,0.69974579]
[1758346443159,0.3246719,115800.0,115790.0,0.72236579]
[1758346443382,0.3511119,115800.0,115790.0,0.93835389]
[1758346443896,0.37707115,115800.0,115790.0,0.93835389]
[1758346444100,0.05452624,115800.0,115790.0,0.65125389]
[1758346444279,0.37707115,115800.0,115790.0,0.65125389]
[1758346444510,0.05452624,115800.0,115790.0,0.65825389]
[1758346444730,0.05128624,115800.0,115790.0,0.66030389]
[1758346444963,0.02808624,115800.0,115790.0,0.68292389]
[1758346445200,0.02808624,115800.0,115790.0,0.68587389]
[1758346445411,0.02808624,115800.0,115790.0,0.69287389]
[1758346445839,0.02808624,115800.0,115790.0,0.96097389]
[1758346451598,0.35062074,115800.0,115790.0,0.96097389]
[1758346453086,0.02808624,115800.0,115790.0,0.96097389]
[1758346453522,0.35062074,115800.0,115790.0,0.96097389]
[1758346458064,0.35062074,115800.0,115790.0,0.93501615]
[1758346460358,0.02808624,115800.0,115790.0,0.93501615]
[1758346460557,0.35062074,115800.0,115790.0,0.93501615]
[1758346460981,0.35062074,115800.0,115790.0,0.90880615]
[1758346461197,0.37382074,115800.0,115790.0,0.90880615]
[1758346461406,0.05128624,115800.0,115790.0,0.90880615]
[1758346461614,0.35062074,115800.0,115790.0,0.63560615]
[1758346461833,0.35062074,115800.0,115790.0,0.93142615]
[1758346468315,0.35062074,115800.0,115790.0,0.93118615]
[1758346470584,0.02808624,115800.0,115790.0,0.93118615]
[1758346470803,0.35062074,115800.0,115790.0,0.93118615]
[1758346471317,0.35062074,115800.0,115790.0,0.65822615]
[1758346471487,0.02808624,115800.0,115790.0,0.93106615]
[1758346471701,0.35062074,115800.0,115790.0,0.93106615]
[1758346472149,0.32466149,115800.0,115790.0,0.93106615]
[1758346474467,0.32466149,115800.0,115790.0,0.93405615]
[1758346480574,0.00212699,115800.0,115790.0,0.93405615]
[1758346480854,0.32466149,115800.0,115790.0,0.93405615]
[1758346488310,0.00212699,115800.0,115790.0,0.93405615]
[1758346488513,0.32258149,115800.0,115790.0,0.93405615]
[1758346489311,4.699e-05,115800.0,115790.0,0.93405615]
[1758346489529,0.32258149,115800.0,115790.0,0.93405615]
[1758346490121,0.32258149,115800.0,115790.0,0.93341615]
[1758346493261,4.699e-05,115800.0,115790.0,1.25595065]
[1758346493942,4.699e-05,115800.0,115790.0,0.93341615]
[1758346496018,4.699e-05,115800.0,115790.0,1.25595065]
[1758346502375,4.699e-05,115800.0,115790.0,1.60863705]
[1758346502974,4.699e-05,115800.0,115790.0,1.28610255]
[1758346509475,4.699e-05,115800.0,115790.0,1.01390255]
[1758346509707,4.699e-05,115800.0,115790.0,1.28642255]
[1758346511880,4.699e-05,115800.0,115790.0,1.28634467]
[1758346548411,0.02595776,115810.0,115800.0,0.18266458]
[1758346548616,0.02595776,115810.0,115800.0,0.80807425]
[1758346548810,0.02807776,115810.0,115800.0,0.80807425]
[1758346549018,0.02807776,115810.0,115800.0,0.81023425]
[1758346549231,0.02807776,115810.0,115800.0,0.83420425]
[1758346549652,0.02807776,115810.0,115800.0,0.83920425]
[1758346550912,0.02807776,115810.0,115800.0,0.84320425]
[1758346554370,0.02807776,115810.0,115800.0,0.84613425]
[1758346555145,0.02807776,115810.0,115800.0,0.91125095]
[1758346557453,0.02595776,115810.0,115800.0,1.23370757]
[1758346557902,0.02595776,115810.0,115800.0,0.91125095]
[1758346558114,0.02595776,115810.0,115800.0,1.23370757]
[1758346561764,0.02595776,115810.0,115800.0,1.32706757]
[1758346561895,0.02595776,115810.0,115800.0,1.35721947]
[1758346562103,0.02595776,115810.0,115800.0,1.08517947]
[1758346562290,0.02595776,115810.0,115800.0,1.35697947]
[1758346563245,0.02595776,115810.0,115800.0,1.08517947]
[1758346563453,0.02595776,115810.0,115800.0,1.35697947]
[1758346570277,0.02595776,115810.0,115800.0,1.35701947]
[1758346570458,0.02595776,115810.0,115800.0,1.03456285]
[1758346570668,0.02595776,115810.0,115800.0,1.35701947]
[1758346571100,0.02595776,115810.0,115800.0,1.33304947]
[1758346571305,0.02595776,115810.0,115800.0,1.35618947]
[1758346571959,0.02595776,115810.0,115800.0,1.356275]
[1758346572812,0.34839991,115810.0,115800.0,1.03383285]
[1758346573665,0.02595776,115810.0,115800.0,1.03383285]
[1758346575582,0.02595776,115810.0,115800.0,1.03379285]
[1758346578056,0.34839991,115810.0,115800.0,1.03379285]
[1758346591711,0.34839991,115810.0,115800.0,0.76199285]
[1758346591931,0.34839991,115810.0,115800.0,1.03339285]
[1758346592678,0.34839991,115810.0,115800.0,0.76199285]
[1758346592883,0.34839991,115810.0,115800.0,1.03339285]
[1758346598035,0.02595776,115810.0,115800.0,1.03339285]
[1758346598230,0.34839991,115810.0,115800.0,1.03339285]
[1758346598815,0.02595776,115810.0,115800.0,1.03339285]
[1758346600092,0.34839991,115810.0,115800.0,1.03339285]
[1758346601739,0.02595776,115810.0,115800.0,1.01025285]
[1758346601957,0.34839991,115810.0,115800.0,1.03475285]
[1758346603611,0.02595776,115810.0,115800.0,1.03475285]
[1758346603810,0.34839991,115810.0,115800.0,1.03475285]
[1758346607083,0.02595776,115810.0,115800.0,1.03475285]
[1758346611025,0.02595776,115810.0,115800.0,0.76335285]
[1758346611232,0.02595776,115810.0,115800.0,1.03475285]
[1758346611609,0.34839991,115810.0,115800.0,1.03475285]
[1758346615571,0.34839991,115810.0,115800.0,0.76335285]
[1758346615779,0.34839991,115810.0,115800.0,1.03467285]
[1758346618658,0.34839991,115810.0,115800.0,0.76335285]
[1758346618853,0.34839991,115810.0,115800.0,1.03467285]
[1758346630848,0.34839991,115810.0,115800.0,0.86196128]
[1758346631108,0.34839991,115810.0,115800.0,1.03467285]
[1758346631861,0.02595776,115810.0,115800.0,1.03467285]
[1758346664170,0.02595776,115810.0,115800.0,1.35715552]
[1758346684058,0.02595776,115810.0,115800.0,1.08583552]
[1758346684263,0.02595776,115810.0,115800.0,1.35659552]
[1758346688521,0.02595776,115810.0,115800.0,1.35643552]
[1758346692320,0.02595776,115810.0,115800.0,1.08583552]
[1758346692527,0.02595776,115810.0,115800.0,1.35631552]
[1758346693827,0.02595776,115810.0,115800.0,1.35628176]
[1758346696324,0.02595776,115810.0,115800.0,0.76335285]
[1758346696624,0.02595776,115810.0,115800.0,1.35624176]
[1758346703463,0.02595776,115810.0,115800.0,1.67869067]
[1758346704231,0.02595776,115810.0,115800.0,1.03379285]
[1758346704434,0.02595776,115810.0,115800.0,1.35624176]
[1758346712723,0.02595776,115810.0,115800.0,1.67869067]
[1758346718612,0.02595776,115810.0,115800.0,1.70464729]
[1758346719030,0.02595776,115810.0,115800.0,1.71342323]
[1758346722088,0.0004,115830.0,115810.0,0.17269665]
[1758346722304,0.00044699,115830.0,115820.0,1.53677631]
[1758346722536,0.00044699,115830.0,115820.0,1.20223923]
[1758346722787,1e-08,115830.0,115820.0,1.20233923]
[1758346723007,1e-08,115830.0,115820.0,1.24341149]
[1758346723277,1e-08,115830.0,115820.0,1.22828874]
[1758346724022,1e-08,115830.0,115820.0,1.23928874]
[1758346724996,1e-08,115830.0,115820.0,1.24728874]
[1758346725213,1e-08,115830.0,115820.0,1.56973765]
[1758346726346,1e-08,115830.0,115820.0,1.90973765]
[1758346726961,1e-08,115830.0,115820.0,1.90969765]
[1758346727720,1e-08,115830.0,115820.0,1.58724874]
[1758346727896,1e-08,115830.0,115820.0,1.90969765]
[1758346728112,1e-08,115830.0,115820.0,2.17779765]
[1758346730730,1e-08,115830.0,115820.0,1.85534874]
[1758346731365,1e-08,115830.0,115820.0,1.21045092]
[1758346731659,1e-08,115830.0,115820.0,1.85534874]
[1758346732267,1e-08,115830.0,115820.0,1.51530874]
[1758346742171,1e-08,115830.0,115820.0,0.87041092]
[1758346742386,1e-08,115830.0,115820.0,1.51530874]
[1758346743701,0.00207001,115830.0,115820.0,0.57628092]
[1758346743938,0.02830001,115830.0,115820.0,0.84122092]
[1758346744153,0.02830001,115830.0,115820.0,1.51627064]
[1758346744559,0.02518001,115830.0,115820.0,1.51627064]
[1758346744768,0.02518001,115830.0,115820.0,0.89652282]
[1758346744984,0.00207001,115830.0,115820.0,1.54142064]
[1758346750446,0.00207001,115830.0,115820.0,0.87137282]
[1758346750647,0.02830001,115830.0,115820.0,1.51623064]
[1758346750853,0.00207001,115830.0,115820.0,1.54138064]
[1758346751598,0.00207001,115830.0,115820.0,1.54434064]
[1758346752737,0.00207001,115830.0,115820.0,0.89944282]
[1758346754819,1e-08,115830.0,115820.0,0.89944282]
[1758346757571,0.00207001,115830.0,115820.0,0.89648282]
[1758346757803,0.35064396,115830.0,115820.0,0.84538331]
[1758346758003,0.37659661,115830.0,115820.0,0.84538331]
[1758346758443,0.05425266,115830.0,115820.0,0.84538331]
[1758346758851,0.02802266,115830.0,115820.0,0.84746331]
[1758346759027,0.02802266,115830.0,115820.0,0.87053331]
[1758346759757,0.02802266,115830.0,115820.0,0.96385331]
[1758346763331,0.05113266,115830.0,115820.0,0.93870331]
[1758346763765,0.05425266,115830.0,115820.0,0.93870331]
[1758346765714,0.03116266,115830.0,115820.0,0.90855141]
[1758346765939,0.39427661,115830.0,115820.0,0.90855141]